[Event "Olomouc Chess Summer IM-B 2024"]
[Site "Olomouc"]
[Date "2024.08.12"]
[Round "4.11"]
[White "Jurek, Josef"]
[Black "Ihnat, Marek"]
[Result "1/2-1/2"]
[ECO "D76"]
[WhiteElo "2191"]
[BlackElo "2097"]
[Annotator "RC"]
[PlyCount "54"]
[EventDate "2024.08.10"]
[EventType "tourn"]
[EventCountry "CZE"]
[SourceTitle "playchess.com"]
[Source "ChessBase"]
[SourceQuality "1"]
[TimeControl "40/5400+30:1800+30"]

1. c4 {[%emt 0:00:11]} Nf6 {[%emt 0:00:09]} 2. d4 {[%emt 0:00:19]} g6 {[%emt 0:00:09]} 3. Nf3 {[%emt 0:00:26]} Bg7 {[%emt 0:00:06]} 4. g3 {[%emt 0:00:40]} O-O {[%emt 0:00:08]} 5. Bg2 {[%emt 0:00:11]} d5 {[%emt 0:00:07]} 6. cxd5 {[%emt 0:00:33]} Nxd5 {[%emt 0:00:06]} 7. O-O {[%emt 0:00:25]} Nb6 {[%emt 0:00:04]} 8. Nc3 {[%emt 0:00:29]} Nc6 {[%emt 0:00:06]} 9. e3 {[%emt 0:01:27]} Re8 {[%emt 0:00:54]} 10. Re1 {[%emt 0:01:00]} a5 {[%emt 0:00:29]} 11. Nb5 {[%emt 0:09:24]} a4 {[%emt 0:07:21]} 12. Bd2 {[%emt 0:08:31]} e5 {[%emt 0:02:24]} 13. dxe5 {[%emt 0:02:49]} Nxe5 {[%emt 0:00:38]} 14. Nxe5 {[%emt 0:00:53]} Bxe5 {[%emt 0:08:23]} 15. Bc3 {[%emt 0:00:00]} Bxc3 {[%emt 0:02:04]} 16. Nxc3 {[%emt 0:04:45]} c6 {[%emt 0:03:05]} 17. Ne4 {[%emt 0:08:37]} Qe7 {[%emt 0:04:52]} 18. Qd6 {[%emt 0:04:39]} Qxd6 {[%emt 0:00:39]} 19. Nxd6 {[%emt 0:00:00]} Re7 {[%emt 0:08:11]} 20. Rad1 {[%emt 0:00:45]} Be6 {[%emt 0:01:49]} 21. Nxb7 {[%emt 0:00:00]} Rxb7 {[%emt 0:00:00]} 22. Bxc6 {[%emt 0:00:34]} Rab8 {[%emt 0:00:26]} 23. Bxb7 {[%emt 0:00:00]} Rxb7 {[%emt 0:16:49]} 24. b3 {[%emt 0:02:45]} axb3 {[%emt 0:00:00]} 25. axb3 {[%emt 0:00:11]} Nd7 {[%emt 0:00:00]} 26. Kg2 {[%emt 0:01:50]} Rxb3 {[%emt 0:00:00]} 27. Rb1 {[%emt 0:03:08]} Rxb1 {[%emt 0:00:00]} 1/2-1/2

[Event "Olomouc Chess Summer IM-B 2024"]
[Site "Olomouc"]
[Date "2024.08.12"]
[Round "4.12"]
[White "Ptacnikova, Lenka"]
[Black "Leitgeb, Julian"]
[Result "1/2-1/2"]
[ECO "D02"]
[WhiteElo "2086"]
[BlackElo "2313"]
[Annotator "RC"]
[PlyCount "42"]
[EventDate "2024.08.10"]
[EventType "tourn"]
[EventCountry "CZE"]
[SourceTitle "playchess.com"]
[Source "ChessBase"]
[SourceQuality "1"]
[TimeControl "40/5400+30:1800+30"]

1. Nf3 {[%emt 0:00:07]} d5 {[%emt 0:02:02]} 2. g3 {[%emt 0:00:28]} Nf6 {[%emt 0:01:00]} 3. Bg2 {[%emt 0:00:09]} e6 {[%emt 0:00:08]} 4. O-O {[%emt 0:00:52]} c5 {[%emt 0:01:06]} 5. d4 {[%emt 0:02:22]} cxd4 {[%emt 0:02:37]} 6. Nxd4 {[%emt 0:07:37]} e5 {[%emt 0:01:10]} 7. Nb3 {[%emt 0:00:04]} Be6 {[%emt 0:03:37]} 8. c4 {[%emt 0:10:17]} Nc6 {[%emt 0:05:27]} 9. cxd5 {[%emt 0:00:30]} Nxd5 {[%emt 0:00:43]} 10. Nc3 {[%emt 0:00:28]} Nxc3 {[%emt 0:03:36]} 11. bxc3 {[%emt 0:00:20]} Qc7 {[%emt 0:05:10]} 12. Be3 {[%emt 0:05:39]} Rd8 {[%emt 0:04:55]} 13. Qc1 {[%emt 0:02:31]} Be7 {[%emt 0:02:11]} 14. Qb2 {[%emt 0:12:53]} O-O {[%emt 0:08:54]} 15. Nc5 {[%emt 0:04:16]} Bc8 {[%emt 0:00:52]} 16. Qb5 {[%emt 0:03:28]} b6 {[%emt 0:21:39]} 17. Qxc6 {[%emt 0:11:26]} Qxc6 {[%emt 0:00:20]} 18. Bxc6 {[%emt 0:00:03]} Bxc5 {[%emt 0:00:41]} 19. Bxc5 {[%emt 0:00:17]} bxc5 {[%emt 0:00:02]} 20. Rfb1 {[%emt 0:04:10]} Rd6 {[%emt 0:04:58]} 21. Ba4 {[%emt 0:09:23]} Ba6 {[%emt 0:02:32]} 1/2-1/2

[Event "Olomouc Chess Summer IM-B 2024"]
[Site "Olomouc"]
[Date "2024.08.12"]
[Round "4.13"]
[White "Dukic, Zachary"]
[Black "Delgerdalai, Bayarjavkhlan"]
[Result "0-1"]
[ECO "B90"]
[WhiteElo "2244"]
[BlackElo "2278"]
[Annotator "RC"]
[PlyCount "104"]
[EventDate "2024.08.10"]
[EventType "tourn"]
[EventCountry "CZE"]
[SourceTitle "playchess.com"]
[Source "ChessBase"]
[SourceQuality "1"]
[TimeControl "40/5400+30:1800+30"]

1. e4 {[%emt 0:00:02]} c5 {[%emt 0:00:05]} 2. Nf3 {[%emt 0:00:06]} d6 {[%emt 0:00:08]} 3. d4 {[%emt 0:00:06]} cxd4 {[%emt 0:00:05]} 4. Nxd4 {[%emt 0:00:06]} Nf6 {[%emt 0:00:06]} 5. Nc3 {[%emt 0:00:06]} a6 {[%emt 0:00:04]} 6. h4 {[%emt 0:00:05]} e5 {[%emt 0:05:09]} 7. Nb3 {[%emt 0:00:11]} Be6 {[%emt 0:00:56]} 8. f4 {[%emt 0:00:12]} exf4 {[%emt 0:02:24]} 9. Bxf4 {[%emt 0:00:12]} Nc6 {[%emt 0:02:15]} 10. Qd2 {[%emt 0:00:11]} d5 {[%emt 0:04:35]} 11. O-O-O {[%emt 0:05:37]} Bb4 {[%emt 0:05:29]} 12. Qd3 {[%emt 0:00:58]} dxe4 {[%emt 0:11:05]} 13. Nxe4 {[%emt 0:03:56]} Qxd3 {[%emt 0:05:14]} 14. Nxf6+ {[%emt 0:00:12]} gxf6 {[%emt 0:00:46]} 15. Bxd3 {[%emt 0:00:10]} Rd8 {[%emt 0:14:21]} 16. Bc7 {[%emt 0:13:56]} Rd7 {[%emt 0:07:56]} 17. Bb6 {[%emt 0:00:25]} Ne5 {[%emt 0:04:03]} 18. Be2 {[%emt 0:15:08]} Rg8 {[%emt 0:06:23]} 19. Nc5 {[%emt 0:12:32]} Bxc5 {[%emt 0:08:20]} 20. Bxc5 {[%emt 0:00:10]} Rxd1+ {[%emt 0:07:57]} 21. Bxd1 {[%emt 0:01:22]} Rxg2 {[%emt 0:01:02]} 22. Rf1 {[%emt 0:00:51]} Rh2 {[%emt 0:09:18]} 23. h5 {[%emt 0:09:02]} Bg4 {[%emt 0:01:42]} 24. Bxg4 {[%emt 0:04:45]} Nxg4 {[%emt 0:00:03]} 25. Rf5 {[%emt 0:00:22]} Kd7 {[%emt 0:02:09]} 26. Rd5+ {[%emt 0:03:58]} Kc6 {[%emt 0:00:32]} 27. c4 {[%emt 0:02:16]} Ne5 {[%emt 0:00:46]} 28. Be7 {[%emt 0:00:11]} Nxc4 {[%emt 0:01:00]} 29. Rc5+ {[%emt 0:01:54]} Kd7 {[%emt 0:00:03]} 30. Bxf6 {[%emt 0:00:10]} Nd6 {[%emt 0:00:37]} 31. Re5 {[%emt 0:01:09]} Kc6 {[%emt 0:00:43]} 32. a3 {[%emt 0:02:00]} Rf2 {[%emt 0:00:30]} 33. Be7 {[%emt 0:01:00]} Kd7 {[%emt 0:00:33]} 34. Bh4 {[%emt 0:00:54]} Rf5 {[%emt 0:00:32]} 35. Re7+ {[%emt 0:00:20]} Kc6 {[%emt 0:00:03]} 36. Bg3 {[%emt 0:00:56]} b6 {[%emt 0:00:35]} 37. Kc2 {[%emt 0:05:11]} Rc5+ {[%emt 0:00:52]} 38. Kd3 {[%emt 0:00:40]} Nf5 {[%emt 0:00:26]} 39. Rc7+ {[%emt 0:00:13]} Kd5 {[%emt 0:00:31]} 40. Rxc5+ {[%emt 0:01:47]} bxc5 {[%emt 0:00:15]} 41. Bf4 {[%emt 0:40:44]} Ng7 {[%emt 0:08:20]} 42. h6 {[%emt 0:00:00]} Ne6 {[%emt 0:01:13]} 43. Bc1 {[%emt 0:00:00]} Nd4 {[%emt 0:02:56]} 44. Be3 {[%emt 0:00:00]} f5 {[%emt 0:11:08]} 45. a4 {[%emt 0:00:00]} c4+ {[%emt 0:03:30]} 46. Kc3 {[%emt 0:00:00]} Ne6 {[%emt 0:03:31]} 47. Bg1 {[%emt 0:00:00]} f4 {[%emt 0:01:03]} 48. Kb4 {[%emt 0:00:00]} f3 {[%emt 0:01:54]} 49. Ka5 {[%emt 0:03:00]} Nc5 {[%emt 0:00:22]} 50. Be3 {[%emt 0:00:16]} Kc6 {[%emt 0:01:01]} 51. Kb4 {[%emt 0:01:45]} Nd3+ {[%emt 0:00:19]} 52. Kxc4 {[%emt 0:00:14]} Nxb2+ {[%emt 0:00:31]} 0-1

[Event "Olomouc Chess Summer IM-B 2024"]
[Site "Olomouc"]
[Date "2024.08.12"]
[Round "4.14"]
[White "Schernthaner, David"]
[Black "Biolek, Richard Jr."]
[Result "1/2-1/2"]
[ECO "A43"]
[WhiteElo "2331"]
[BlackElo "2417"]
[Annotator "RC"]
[PlyCount "68"]
[EventDate "2024.08.10"]
[EventType "tourn"]
[EventCountry "CZE"]
[SourceTitle "playchess.com"]
[Source "ChessBase"]
[SourceQuality "1"]
[TimeControl "40/5400+30:1800+30"]

1. d4 {[%emt 0:00:02]} e6 {[%emt 0:01:51]} 2. e4 {[%emt 0:02:04]} c5 {[%emt 0:00:36]} 3. d5 {[%emt 0:02:19]} exd5 {[%emt 0:00:05]} 4. exd5 {[%emt 0:00:04]} d6 {[%emt 0:00:05]} 5. Nf3 {[%emt 0:03:12]} Nf6 {[%emt 0:00:26]} 6. Nc3 {[%emt 0:03:55]} Be7 {[%emt 0:00:17]} 7. Bd3 {[%emt 0:01:00]} Bg4 {[%emt 0:00:41]} 8. h3 {[%emt 0:00:26]} Bh5 {[%emt 0:00:08]} 9. O-O {[%emt 0:01:24]} O-O {[%emt 0:00:19]} 10. Re1 {[%emt 0:01:06]} a6 {[%emt 0:02:04]} 11. a4 {[%emt 0:00:16]} Nbd7 {[%emt 0:00:45]} 12. Bf4 {[%emt 0:01:22]} Re8 {[%emt 0:00:50]} 13. g4 {[%emt 0:06:34]} Bg6 {[%emt 0:01:04]} 14. Bxg6 {[%emt 0:00:27]} hxg6 {[%emt 0:00:05]} 15. Qd3 {[%emt 0:00:51]} Bf8 {[%emt 0:01:48]} 16. Rxe8 {[%emt 0:02:57]} Nxe8 {[%emt 0:00:08]} 17. Re1 {[%emt 0:02:48]} Rc8 {[%emt 0:04:20]} 18. Nd2 {[%emt 0:07:19]} Be7 {[%emt 0:10:15]} 19. Nc4 {[%emt 0:07:51]} Bf6 {[%emt 0:12:00]} 20. Ne4 {[%emt 0:08:36]} Be5 {[%emt 0:07:04]} 21. Bxe5 {[%emt 0:01:37]} dxe5 {[%emt 0:00:35]} 22. a5 {[%emt 0:03:17]} Qc7 {[%emt 0:06:58]} 23. g5 {[%emt 0:05:58]} Rd8 {[%emt 0:01:55]} 24. Rd1 {[%emt 0:01:20]} Kf8 {[%emt 0:15:24]} 25. Qe3 {[%emt 0:06:13]} Kg8 {[%emt 0:03:16]} 26. Rd3 {[%emt 0:02:21]} f5 {[%emt 0:01:01]} 27. d6 {[%emt 0:06:09]} Qc6 {[%emt 0:06:26]} 28. Nc3 {[%emt 0:00:09]} e4 {[%emt 0:00:02]} 29. Rd5 {[%emt 0:00:49]} b5 {[%emt 0:03:36]} 30. axb6 {[%emt 0:03:11]} Nxb6 {[%emt 0:00:39]} 31. Rxc5 {[%emt 0:03:08]} Nxc4 {[%emt 0:00:28]} 32. Rxc6 {[%emt 0:02:04]} Nxe3 {[%emt 0:00:02]} 33. fxe3 {[%emt 0:00:05]} Rxd6 {[%emt 0:00:09]} 34. Rxd6 {[%emt 0:00:34]} Nxd6 {[%emt 0:00:19]} 1/2-1/2

[Event "Olomouc Chess Summer IM-B 2024"]
[Site "Olomouc"]
[Date "2024.08.12"]
[Round "4.15"]
[White "Zavurka, Roman"]
[Black "Plischki, Sebastian"]
[Result "1-0"]
[ECO "A48"]
[WhiteElo "2191"]
[BlackElo "2325"]
[Annotator "RC"]
[PlyCount "85"]
[EventDate "2024.08.10"]
[EventType "tourn"]
[EventCountry "CZE"]
[SourceTitle "playchess.com"]
[Source "ChessBase"]
[SourceQuality "1"]
[TimeControl "40/5400+30:1800+30"]

1. d4 {[%emt 0:00:26]} Nf6 {[%emt 0:00:16]} 2. Bf4 {[%emt 0:00:08]} g6 {[%emt 0:00:17]} 3. e3 {[%emt 0:00:09]} Bg7 {[%emt 0:00:09]} 4. Nf3 {[%emt 0:00:05]} O-O {[%emt 0:00:12]} 5. Be2 {[%emt 0:00:07]} c5 {[%emt 0:00:45]} 6. c3 {[%emt 0:00:09]} Qb6 {[%emt 0:01:04]} 7. Qb3 {[%emt 0:00:33]} d6 {[%emt 0:00:09]} 8. dxc5 {[%emt 0:01:56]} Qxc5 {[%emt 0:00:48]} 9. h3 {[%emt 0:01:06]} Nc6 {[%emt 0:01:29]} 10. O-O {[%emt 0:00:32]} e5 {[%emt 0:02:04]} 11. Bh2 {[%emt 0:00:47]} Rb8 {[%emt 0:11:22]} 12. Qa3 {[%emt 0:02:00]} Ne4 {[%emt 0:06:25]} 13. Rd1 {[%emt 0:04:10]} Rd8 {[%emt 0:07:42]} 14. Qxc5 {[%emt 0:15:26]} Nxc5 {[%emt 0:00:14]} 15. b4 {[%emt 0:01:14]} Ne6 {[%emt 0:06:00]} 16. b5 {[%emt 0:03:41]} Ne7 {[%emt 0:02:20]} 17. Na3 {[%emt 0:04:57]} f6 {[%emt 0:04:18]} 18. Nc2 {[%emt 0:08:30]} Nc5 {[%emt 0:02:56]} 19. Nb4 {[%emt 0:02:09]} Be6 {[%emt 0:06:24]} 20. Nd2 {[%emt 0:05:58]} Rbc8 {[%emt 0:00:00]} 21. c4 {[%emt 0:08:23]} a5 {[%emt 0:00:55]} 22. bxa6 {[%emt 0:05:09]} bxa6 {[%emt 0:00:09]} 23. Nb3 {[%emt 0:01:29]} Na4 {[%emt 0:01:41]} 24. Rdc1 {[%emt 0:04:07]} Nc5 {[%emt 0:13:00]} 25. Rd1 {[%emt 0:05:24]} Rd7 {[%emt 0:23:40]} 26. Nxc5 {[%emt 0:04:05]} Rxc5 {[%emt 0:00:09]} 27. Nxa6 {[%emt 0:00:54]} Ra5 {[%emt 0:00:34]} 28. Nb4 {[%emt 0:01:27]} Kf7 {[%emt 0:00:49]} 29. e4 {[%emt 0:05:20]} f5 {[%emt 0:00:58]} 30. f3 {[%emt 0:01:01]} Bh6 {[%emt 0:00:18]} 31. Bg3 {[%emt 0:00:43]} Rb7 {[%emt 0:02:32]} 32. a3 {[%emt 0:01:01]} Be3+ {[%emt 0:01:47]} 33. Bf2 {[%emt 0:00:25]} Bxf2+ {[%emt 0:00:11]} 34. Kxf2 {[%emt 0:00:08]} Rb6 {[%emt 0:00:11]} 35. g4 {[%emt 0:01:07]} f4 {[%emt 0:00:31]} 36. h4 {[%emt 0:02:08]} Nc6 {[%emt 0:01:09]} 37. Rxd6 {[%emt 0:01:50]} Rxb4 {[%emt 0:00:30]} 38. axb4 {[%emt 0:01:06]} Rxa1 {[%emt 0:00:06]} 39. Rxc6 {[%emt 0:00:13]} Ra2 {[%emt 0:00:11]} 40. Rc7+ {[%emt 0:01:49]} Kf8 {[%emt 0:00:30]} 41. b5 {[%emt 0:30:44]} Rb2 {[%emt 0:30:07]} 42. Ke1 {[%emt 0:01:16]} h6 {[%emt 0:00:29]} 43. c5 {[%emt 0:04:47]} 1-0

[Event "Olomouc Chess Summer IM-B 2024"]
[Site "Olomouc"]
[Date "2024.08.13"]
[Round "5.12"]
[White "Plischki, Sebastian"]
[Black "Schernthaner, David"]
[Result "1/2-1/2"]
[ECO "E21"]
[WhiteElo "2325"]
[BlackElo "2331"]
[Annotator "RC"]
[PlyCount "38"]
[EventDate "2024.08.10"]
[EventType "tourn"]
[EventCountry "CZE"]
[SourceTitle "playchess.com"]
[Source "ChessBase"]
[SourceQuality "1"]
[TimeControl "40/5400+30:1800+30"]

1. d4 {[%emt 0:00:03]} Nf6 {[%emt 0:00:10]} 2. c4 {[%emt 0:00:06]} e6 {[%emt 0:00:04]} 3. Nc3 {[%emt 0:00:07]} Bb4 {[%emt 0:00:11]} 4. e3 {[%emt 0:00:06]} O-O {[%emt 0:00:08]} 5. Bd2 {[%emt 0:00:12]} b6 {[%emt 0:01:18]} 6. Nf3 {[%emt 0:00:25]} Bb7 {[%emt 0:00:04]} 7. Bd3 {[%emt 0:00:12]} Bxc3 {[%emt 0:01:37]} 8. Bxc3 {[%emt 0:00:10]} Ne4 {[%emt 0:00:05]} 9. Bxe4 {[%emt 0:00:47]} Bxe4 {[%emt 0:00:04]} 10. d5 {[%emt 0:00:29]} f6 {[%emt 0:09:20]} 11. Nd2 {[%emt 0:04:58]} Bg6 {[%emt 0:04:51]} 12. h4 {[%emt 0:04:07]} Bf7 {[%emt 0:17:36]} 13. Qf3 {[%emt 0:05:22]} exd5 {[%emt 0:02:12]} 14. cxd5 {[%emt 0:00:18]} c6 {[%emt 0:03:21]} 15. d6 {[%emt 0:05:23]} Na6 {[%emt 0:01:31]} 16. O-O {[%emt 0:07:30]} Nc5 {[%emt 0:01:39]} 17. b3 {[%emt 0:02:20]} Qe8 {[%emt 0:01:05]} 18. e4 {[%emt 0:05:41]} Qe6 {[%emt 0:03:41]} 19. Qg3 {[%emt 0:01:30]} Nxe4 {[%emt 0:13:58]} 1/2-1/2

[Event "Olomouc Chess Summer IM-B 2024"]
[Site "Olomouc"]
[Date "2024.08.13"]
[Round "5.13"]
[White "Delgerdalai, Bayarjavkhlan"]
[Black "Zavurka, Roman"]
[Result "1-0"]
[ECO "B00"]
[WhiteElo "2278"]
[BlackElo "2191"]
[Annotator "RC"]
[PlyCount "83"]
[EventDate "2024.08.10"]
[EventType "tourn"]
[EventCountry "CZE"]
[SourceTitle "playchess.com"]
[Source "ChessBase"]
[SourceQuality "1"]
[TimeControl "40/5400+30:1800+30"]

1. e4 {[%emt 0:00:02]} b6 {[%emt 0:00:11]} 2. d4 {[%emt 0:00:06]} Bb7 {[%emt 0:00:05]} 3. Nc3 {[%emt 0:00:05]} e6 {[%emt 0:00:05]} 4. Bd3 {[%emt 0:00:10]} Nf6 {[%emt 0:00:13]} 5. Nge2 {[%emt 0:00:06]} d5 {[%emt 0:00:32]} 6. e5 {[%emt 0:00:49]} Ng8 {[%emt 0:00:09]} 7. Nb1 {[%emt 0:05:48]} c5 {[%emt 0:00:40]} 8. c3 {[%emt 0:00:14]} Nc6 {[%emt 0:00:26]} 9. a3 {[%emt 0:04:45]} Nge7 {[%emt 0:02:55]} 10. Be3 {[%emt 0:02:56]} Ng6 {[%emt 0:02:24]} 11. Nd2 {[%emt 0:01:35]} Qd7 {[%emt 0:11:05]} 12. f4 {[%emt 0:04:29]} Nh4 {[%emt 0:04:14]} 13. Bf2 {[%emt 0:09:48]} Be7 {[%emt 0:02:03]} 14. g3 {[%emt 0:01:32]} Nf5 {[%emt 0:02:12]} 15. Nf3 {[%emt 0:00:28]} h5 {[%emt 0:00:38]} 16. b4 {[%emt 0:06:46]} c4 {[%emt 0:07:51]} 17. Bc2 {[%emt 0:00:06]} g6 {[%emt 0:00:43]} 18. Qd2 {[%emt 0:03:31]} a6 {[%emt 0:09:28]} 19. Neg1 {[%emt 0:05:08]} b5 {[%emt 0:07:24]} 20. Nh3 {[%emt 0:13:05]} a5 {[%emt 0:04:08]} 21. O-O {[%emt 0:05:42]} Kf8 {[%emt 0:06:00]} 22. Nhg5 {[%emt 0:03:57]} Kg7 {[%emt 0:00:25]} 23. h3 {[%emt 0:05:58]} Nh6 {[%emt 0:01:55]} 24. Kg2 {[%emt 0:04:35]} Ra7 {[%emt 0:08:11]} 25. Rh1 {[%emt 0:02:37]} Rha8 {[%emt 0:02:51]} 26. Rab1 {[%emt 0:00:36]} axb4 {[%emt 0:00:31]} 27. axb4 {[%emt 0:00:05]} Ra2 {[%emt 0:01:47]} 28. g4 {[%emt 0:05:37]} Rg8 {[%emt 0:02:35]} 29. gxh5 {[%emt 0:03:03]} gxh5 {[%emt 0:00:33]} 30. Kh2 {[%emt 0:03:34]} Bxg5 {[%emt 0:03:25]} 31. Nxg5 {[%emt 0:01:20]} Ne7 {[%emt 0:00:56]} 32. Ra1 {[%emt 0:02:41]} Rga8 {[%emt 0:02:09]} 33. Rxa2 {[%emt 0:01:37]} Rxa2 {[%emt 0:00:08]} 34. Rg1 {[%emt 0:01:23]} Ng6 {[%emt 0:00:45]} 35. Qd1 {[%emt 0:01:32]} Qe8 {[%emt 0:06:25]} 36. Qb1 {[%emt 0:00:38]} Ra6 {[%emt 0:03:35]} 37. Nxf7 {[%emt 0:00:18]} Ng4+ {[%emt 0:00:45]} 38. hxg4 {[%emt 0:01:20]} Qxf7 {[%emt 0:01:11]} 39. f5 {[%emt 0:00:53]} Nf4 {[%emt 0:02:36]} 40. f6+ {[%emt 0:00:15]} Kf8 {[%emt 0:03:46]} 41. g5 {[%emt 0:30:06]} Bc6 {[%emt 0:31:05]} 42. g6 {[%emt 0:00:24]} 1-0

[Event "Olomouc Chess Summer IM-B 2024"]
[Site "Olomouc"]
[Date "2024.08.13"]
[Round "5.14"]
[White "Leitgeb, Julian"]
[Black "Dukic, Zachary"]
[Result "0-1"]
[ECO "C41"]
[WhiteElo "2313"]
[BlackElo "2244"]
[Annotator "RC"]
[PlyCount "122"]
[EventDate "2024.08.10"]
[EventType "tourn"]
[EventCountry "CZE"]
[SourceTitle "playchess.com"]
[Source "ChessBase"]
[SourceQuality "1"]
[TimeControl "40/5400+30:1800+30"]

1. e4 {[%emt 0:00:03]} d6 {[%emt 0:00:05]} 2. d4 {[%emt 0:00:06]} Nf6 {[%emt 0:00:05]} 3. Nc3 {[%emt 0:00:06]} e5 {[%emt 0:00:05]} 4. Nf3 {[%emt 0:00:06]} Nbd7 {[%emt 0:00:05]} 5. Rg1 {[%emt 0:00:20]} g6 {[%emt 0:00:06]} 6. g4 {[%emt 0:00:33]} exd4 {[%emt 0:00:06]} 7. Nxd4 {[%emt 0:00:48]} Bg7 {[%emt 0:00:06]} 8. Be3 {[%emt 0:08:35]} O-O {[%emt 0:00:13]} 9. g5 {[%emt 0:04:20]} Ne8 {[%emt 0:00:08]} 10. Qd2 {[%emt 0:03:21]} c5 {[%emt 0:00:08]} 11. Nb3 {[%emt 0:04:07]} a5 {[%emt 0:07:03]} 12. a4 {[%emt 0:02:00]} Qe7 {[%emt 0:00:08]} 13. f3 {[%emt 0:04:50]} Ne5 {[%emt 0:04:04]} 14. Be2 {[%emt 0:06:07]} Be6 {[%emt 0:05:38]} 15. Nd5 {[%emt 0:06:42]} Bxd5 {[%emt 0:00:31]} 16. Qxd5 {[%emt 0:00:23]} Nc7 {[%emt 0:00:48]} 17. Qd2 {[%emt 0:00:09]} b6 {[%emt 0:23:12]} 18. O-O-O {[%emt 0:08:59]} Rad8 {[%emt 0:01:45]} 19. f4 {[%emt 0:04:50]} Nc6 {[%emt 0:00:10]} 20. Bf3 {[%emt 0:02:44]} d5 {[%emt 0:13:50]} 21. exd5 {[%emt 0:04:48]} Nb4 {[%emt 0:00:09]} 22. d6 {[%emt 0:04:49]} Rxd6 {[%emt 0:00:20]} 23. Qxd6 {[%emt 0:01:23]} Qxe3+ {[%emt 0:00:08]} 24. Kb1 {[%emt 0:02:59]} Ne8 {[%emt 0:00:09]} 25. Qxb6 {[%emt 0:04:00]} Qxf3 {[%emt 0:00:09]} 26. Qxc5 {[%emt 0:01:17]} Qxf4 {[%emt 0:01:38]} 27. Nxa5 {[%emt 0:00:47]} Na6 {[%emt 0:00:28]} 28. Qc6 {[%emt 0:06:06]} Nec7 {[%emt 0:07:25]} 29. Nb3 {[%emt 0:01:27]} Qe5 {[%emt 0:01:29]} 30. Nd4 {[%emt 0:01:37]} Ne6 {[%emt 0:02:28]} 31. Qxa6 {[%emt 0:10:21]} Nxd4 {[%emt 0:00:08]} 32. Rge1 {[%emt 0:02:31]} Qb8 {[%emt 0:04:42]} 33. c3 {[%emt 0:00:47]} Nf3 {[%emt 0:00:31]} 34. Re3 {[%emt 0:00:17]} Nxg5 {[%emt 0:00:32]} 35. h4 {[%emt 0:02:51]} Qf4 {[%emt 0:03:37]} 36. Red3 {[%emt 0:00:02]} Ne6 {[%emt 0:01:35]} 37. Qc6 {[%emt 0:01:13]} Rb8 {[%emt 0:04:32]} 38. Ka2 {[%emt 0:00:05]} Bh6 {[%emt 0:01:15]} 39. b4 {[%emt 0:02:35]} Qf2+ {[%emt 0:00:38]} 40. Kb1 {[%emt 0:00:53]} Qxh4 {[%emt 0:04:14]} 41. Qd6 {[%emt 0:12:21]} Bf4 {[%emt 0:03:37]} 42. Qd5 {[%emt 0:01:06]} Bc7 {[%emt 0:04:46]} 43. Kc2 {[%emt 0:02:17]} Qf6 {[%emt 0:04:17]} 44. Qe4 {[%emt 0:02:40]} Ng7 {[%emt 0:05:23]} 45. a5 {[%emt 0:01:52]} Nf5 {[%emt 0:01:23]} 46. Rd7 {[%emt 0:07:33]} Bg3 {[%emt 0:04:32]} 47. R1d3 {[%emt 0:00:54]} h5 {[%emt 0:00:32]} 48. Qc4 {[%emt 0:01:57]} h4 {[%emt 0:03:30]} 49. a6 {[%emt 0:00:28]} Bf2 {[%emt 0:02:15]} 50. Kb3 {[%emt 0:01:16]} Kg7 {[%emt 0:04:13]} 51. Rb7 {[%emt 0:02:08]} Rxb7 {[%emt 0:05:16]} 52. axb7 {[%emt 0:00:02]} Ba7 {[%emt 0:00:37]} 53. Qc8 {[%emt 0:01:11]} Qe5 {[%emt 0:01:01]} 54. Qa8 {[%emt 0:01:02]} Qe6+ {[%emt 0:02:52]} 55. Ka3 {[%emt 0:00:43]} Qa6+ {[%emt 0:01:08]} 56. Kb2 {[%emt 0:00:01]} Qxd3 {[%emt 0:03:41]} 57. Qxa7 {[%emt 0:00:02]} Qd2+ {[%emt 0:00:14]} 58. Kb3 {[%emt 0:00:24]} Qd1+ {[%emt 0:00:09]} 59. Kb2 {[%emt 0:00:06]} Nd6 {[%emt 0:00:44]} 60. b8=Q {[%emt 0:01:16]} Nc4+ {[%emt 0:00:12]} 61. Ka2 {[%emt 0:00:39]} Qc2+ {[%emt 0:00:16]} 0-1

[Event "Olomouc Chess Summer IM-B 2024"]
[Site "Olomouc"]
[Date "2024.08.13"]
[Round "5.15"]
[White "Ihnat, Marek"]
[Black "Ptacnikova, Lenka"]
[Result "1/2-1/2"]
[ECO "B35"]
[WhiteElo "2097"]
[BlackElo "2086"]
[Annotator "NA RC"]
[PlyCount "31"]
[EventDate "2024.08.10"]
[EventType "tourn"]
[EventCountry "CZE"]
[SourceTitle "playchess.com"]
[Source "ChessBase"]
[SourceQuality "1"]
[TimeControl "40/5400+30:1800+30"]

1. e4 {[%emt 0:00:07]} c5 {[%emt 0:00:03]} 2. Nf3 {[%emt 0:00:07]} Nc6 {[%emt 0:00:10]} 3. d4 {[%emt 0:00:26]} cxd4 {[%emt 0:00:04]} 4. Nxd4 {[%emt 0:00:04]} g6 {[%emt 0:00:04]} 5. Nc3 {[%emt 0:00:21]} Bg7 {[%emt 0:00:05]} 6. Be3 {[%emt 0:00:05]} Nf6 {[%emt 0:00:13]} 7. Bc4 {[%emt 0:00:09]} O-O {[%emt 0:00:06]} 8. Bb3 {[%emt 0:00:04]} Re8 {[%emt 0:00:12]} 9. f3 {[%emt 0:00:04]} e6 {[%emt 0:00:09]} 10. f4 {[%emt 0:00:01]} d6 {[%emt 0:00:18]} 11. Ndb5 {[%emt 0:12:15]} Bf8 {[%emt 0:00:11]} 12. O-O {[%emt 0:29:53]} a6 {[%emt 0:03:11]} 13. Nd4 {[%emt 0:01:54]} Na5 {[%emt 0:03:44]} 14. Qf3 {[%emt 0:06:34]} Nxb3 {[%emt 0:02:40]} 15. Nxb3 {[%emt 0:00:40]} Qc7 {[%emt 0:05:02]} 16. Rae1 {[%emt 0:09:41]} 1/2-1/2

[Event "Olomouc Chess Summer IM-B 2024"]
[Site "Olomouc"]
[Date "2024.08.14"]
[Round "6.11"]
[White "Jurek, Josef"]
[Black "Ptacnikova, Lenka"]
[Result "1/2-1/2"]
[ECO "E11"]
[WhiteElo "2191"]
[BlackElo "2086"]
[Annotator "RC"]
[PlyCount "49"]
[EventDate "2024.08.10"]
[EventType "tourn"]
[EventCountry "CZE"]
[SourceTitle "playchess.com"]
[Source "ChessBase"]
[SourceQuality "1"]
[TimeControl "40/5400+30:1800+30"]

1. d4 {[%emt 0:00:30]} Nf6 {[%emt 0:00:30]} 2. c4 {[%emt 0:00:30]} e6 {[%emt 0:00:30]} 3. g3 {[%emt 0:00:30]} d5 {[%emt 0:00:23]} 4. Bg2 {[%emt 0:00:26]} Bb4+ {[%emt 0:04:32]} 5. Bd2 {[%emt 0:01:34]} Be7 {[%emt 0:00:08]} 6. Nf3 {[%emt 0:01:03]} O-O {[%emt 0:00:21]} 7. O-O {[%emt 0:00:24]} dxc4 {[%emt 0:00:58]} 8. Qc2 {[%emt 0:01:28]} a6 {[%emt 0:03:13]} 9. Qxc4 {[%emt 0:02:24]} b5 {[%emt 0:00:14]} 10. Qc2 {[%emt 0:02:28]} Bb7 {[%emt 0:00:11]} 11. Rc1 {[%emt 0:01:41]} Nc6 {[%emt 0:05:50]} 12. Qd3 {[%emt 0:11:28]} Nb4 {[%emt 0:05:19]} 13. Bxb4 {[%emt 0:00:34]} Bxb4 {[%emt 0:00:04]} 14. a3 {[%emt 0:04:45]} Be7 {[%emt 0:09:11]} 15. b4 {[%emt 0:03:45]} Bxf3 {[%emt 0:13:33]} 16. Bxf3 {[%emt 0:02:30]} Nd5 {[%emt 0:02:21]} 17. Nc3 {[%emt 0:06:25]} c6 {[%emt 0:01:04]} 18. Ne4 {[%emt 0:02:06]} a5 {[%emt 0:01:44]} 19. Nc5 {[%emt 0:14:06]} axb4 {[%emt 0:07:57]} 20. e4 {[%emt 0:03:10]} b3 {[%emt 0:09:39]} 21. Nxb3 {[%emt 0:04:09]} Nb6 {[%emt 0:01:10]} 22. e5 {[%emt 0:03:47]} Nc4 {[%emt 0:00:08]} 23. Bxc6 {[%emt 0:06:55]} Nxe5 {[%emt 0:00:41]} 24. Qxb5 {[%emt 0:01:18]} Nxc6 {[%emt 0:00:41]} 25. Qxc6 {[%emt 0:01:47]} 1/2-1/2